Cogmind - Beta 13 *** ADVENTURER MODE // 2024.05.19 @ 11:47:26 Player: magnus150 Result: Destroyed by D-53 Grenadier with Mini Grenade Launcher Performance ------------- Evolutions (0) 0 Regions Visited (2) 400 Robots Destroyed (18) 90 Value Destroyed (525) 525 Prototype IDs (0) 0 Alien Tech Used (0) 0 Bonus (0) 0 TOTAL SCORE: 1015 Bonus ------- None Cogmind --------- Core Integrity 0/250 Matter 166/300 Energy 160/160 System Corruption 3% Temperature Cool (34) Movement Core (100) Ox1 Location -10/Mines Parts ------- > --- POWER (1) -------- Light Nuclear Core > --- PROPULSION (2) --- (None) > --- UTILITY (2) ------ (None) > --- WEAPON (2) ------- (None) > --- INVENTORY (5) ---- Ion Engine Small Laser Particle Gun Heavy Assault Rifle Grenade Launcher Peak State ------------ > --- POWER ------------ Ion Engine > --- PROPULSION ------- Wheel Wheel > --- UTILITY ---------- High-capacity Storage Unit Light Armor Plating > --- WEAPON ----------- Assault Rifle Plasma Cutter > --- INVENTORY -------- Ion Engine Aluminum Leg Aluminum Leg Hover Unit Hover Unit Structural Scanner Sensor Array Signal Interpreter Particle Gun Beam Cannon Beam Cannon Assault Rifle Heavy Assault Rifle Grenade Launcher [Rating: 9] Favorites ----------- Power Ion Engine Engine Ion Engine Power Core Light Nuclear Core Propulsion Wheel Leg Aluminum Leg Wheel Wheel Hover Unit Hover Unit Flight Unit Flight Unit Utility Light Armor Plating Device Structural Scanner Storage High-capacity Storage Unit Processor Visual Processing Unit Protection Light Armor Plating Weapon Assault Rifle Energy Gun Medium Laser Energy Cannon Beam Cannon Ballistic Gun Assault Rifle Launcher Grenade Launcher Special Weapon Mining Laser Build | -11 -10 -10 ------- Run | Yrd Mat Min Slots Evolved . | . . . Power . | . . . Propulsion . | . . . Utility . | . . . Weapon . | . . . Parts Attached 53 | 9 26 18 Power 4 | 1 1 2 Engine 3 | 1 1 1 Core 1 | . . 1 Reactor . | . . . Propulsion 21 | 4 8 9 Treads . | . . . Leg 6 | 2 2 2 Wheel 9 | 2 5 2 Hover 5 | . 1 4 Flight 1 | . . 1 Utility 6 | . 4 2 Device 3 | . 1 2 Storage 1 | . 1 . Processor 1 | . 1 . Hackware . | . . . Protection 1 | . 1 . Artifact . | . . . Weapon 22 | 4 13 5 Energy Gun 5 | 2 2 1 Energy Cannon 3 | . 2 1 Ballistic Gun 9 | 2 5 2 Ballistic Cannon . | . . . Launcher 3 | . 2 1 Special Weapon 2 | . 2 . Impact Weapon . | . . . Slashing Weapon . | . . . Piercing Weapon . | . . . Special Melee Weapon . | . . . Unidentified Prototypes . | . . . Parts Lost 7 | . 1 6 Power . | . . . Propulsion 2 | . . 2 Utility 3 | . 1 2 Weapon 2 | . . 2 Highest Loss Streak 6 | . 1 6 To Critical Strikes . | . . . Average Slot Usage (%) 96 | . 96 96 Engine 13 | . 14 9 Leg 2 | . 2 1 Wheel 22 | . 24 7 Hover 2 | . . 18 Device 7 | . 5 21 Storage 6 | . 7 4 Protection 10 | . 11 . Energy Gun 5 | . 5 3 Energy Cannon 4 | . 3 9 Ballistic Gun 15 | . 16 14 Launcher 1 | . 1 1 Special Weapon 1 | . 1 . Naked Turns . | . . . Heaviest Build 54 | 7 54 51 Greatest Support 20 | 20 20 20 Greatest Overweight (x) 3 | . 2 3 Average Overweight (x) . | . . . Largest Inventory Capacity 20 | 5 20 20 Average Capacity 11 | 5 12 8 Most Carried 16 | 5 16 13 Average Carried 7 | 2 8 6 Final Capacity 20 | 5 20 5 Final Carried 13 | 3 13 5 Class Distribution -------------------- 100% | Mutant Dominant Class ---------------- Mutant | -10/Materials Mutant | -10/Mines Resources | -11 -10 -10 ----------- Run | Yrd Mat Min Matter Collected 762 | 308 315 139 Remotely . | . . . Salvage Created 569 | 49 380 140 Parts 36 | 1 27 8 Haulers Intercepted . | . . . Recyclers Shooed 1 | . 1 . Parts Field Recycled . | . . . Retrieved Matter . | . . . Parts Self-Destructed . | . . . Prevented . | . . . Kills | -11 -10 -10 ------- Run | Yrd Mat Min Combat Hostiles Destroyed 14 | 1 7 6 Guns 7 | 1 5 1 Cannons 3 | . . 3 AOE 4 | . 2 2 Classes Destroyed 5 | 1 2 2 Builder 1 | . 1 . Watcher 3 | . 3 . Swarmer 3 | . . 3 Grunt 10 | 1 7 2 Demolisher 1 | . . 1 Best Kill Streak 3 | 1 3 3 Combat Bots Only 3 | 1 2 3 Max Kills in Single Turn 2 | 1 1 2 Gunslinging . | . . . Exploded 2 | . 1 2 Melee . | . . . Uniques/NPCs Destroyed . | . . . Combat | -11 -10 -10 -------- Run | Yrd Mat Min Hostile Shots Fired 62 | 8 25 29 Missed 15 | 1 7 7 Damage Taken 1002 | 56 423 523 Core 275 | 8 46 221 Absorbed by Shields . | . . . Ignored by Resistances 221 | 17 58 146 Regen/Repaired (Parts) 24 | . 24 . Core Remaining (%) 96 | 96 . . Volleys Fired 68 | 6 43 19 Largest 2 | 2 2 2 Hottest 120 | 70 120 80 Shots Fired 114 | 12 70 32 Gun 82 | 12 52 18 Cannon 15 | . 2 13 Launcher 4 | . 3 1 Special 13 | . 13 . Kinetic 60 | 6 36 18 Thermal 50 | 6 31 13 Explosive 4 | . 3 1 Electromagnetic . | . . . Robot Hit Streak 14 | 7 9 14 Robot Miss Streak 4 | 1 3 4 Penetration Max . | . . . Secondary Targets . | . . . Shots Hit Robots 58 | 10 34 14 Core Hits 33 | 2 22 9 Critical Kills . | . . . Critical Parts Destroyed 2 | . 2 . Critical Strikes 4 | . 4 . Burn 2 | . 2 . Destroy 2 | . 2 . Melee Attacks . | . . . Impact . | . . . Slashing . | . . . Piercing . | . . . Sneak Attacks . | . . . Combat Hostiles . | . . . Follow-up Attacks . | . . . Damage Inflicted 1014 | 126 547 341 Guns 629 | 126 400 103 Cannons 141 | . . 141 Explosions 242 | . 145 97 Melee . | . . . Ramming 2 | . 2 . Kinetic 429 | 51 275 103 Thermal 341 | 75 125 141 Explosive 242 | . 145 97 Electromagnetic . | . . . Impact . | . . . Slashing . | . . . Piercing . | . . . Highest Corruption 3 | . 3 3 Average Corruption 1 | . 1 3 Corruption Purged . | . . . Corruption Blocked . | . . . Effects 18 | . 12 6 Message Errors 6 | . 3 3 Matter Fused 4 | . 4 . Heat Flow Errors 4 | . 2 2 Energy Discharges 1 | . 1 . Data Loss (major) 2 | . 2 . Weapon Failures 1 | . . 1 Overload Shots . | . . . Overflow Damage . | . . . Projectiles . | . . . Explosions . | . . . Melee . | . . . Knockbacks . | . . . Impact . | . . . Kinetic . | . . . Secondary . | . . . Self-Inflicted Damage 7 | . 7 . Shots 1 | . 1 . Rammed 1 | . 1 . Targets Rammed 1 | . 1 . Kicked . | . . . Crushed . | . . . Highest Temperature 225 | 96 225 204 Average Temperature 82 | 53 92 70 Received Heat Transfer 219 | 42 138 39 Effects 1 | . 1 . Energy Bleed 1 | . 1 . Siege Activations . | . . . Robots Corrupted . | . . . Combat Hostiles . | . . . Parts Fried . | . . . Impact Corruptions . | . . . Robots Melted . | . . . Combat Hostiles . | . . . Parts Melted 2 | 1 1 . Heat Transferred 1036 | 222 518 296 Parts Sabotaged . | . . . Parts Stolen . | . . . Parts Stripped . | . . . Power Chain Reactions . | . . . Alert | -11 -10 -10 ------- Run | Yrd Mat Min Peak Influence 138 | 20 132 138 Initial 11 | . 11 . Average 50 | 2 46 97 Maximum Alert Level . | . . . Low Security (%) 100 | 100 100 100 Level 1 . | . . . Level 2 . | . . . Level 3 . | . . . Level 4 . | . . . Level 5 . | . . . High Security . | . . . Max Security . | . . . Squads Dispatched 1 | . 1 . Investigation 1 | . 1 . Extermination . | . . . Reinforcement . | . . . Assault . | . . . Garrison . | . . . Intercept . | . . . Searches Triggered . | . . . Construction Impeded . | . . . Haulers Reinforced . | . . . Active Scanning Responses . | . . . Cargo Convoy Interrupts . | . . . Stealth | -11 -10 -10 --------- Run | Yrd Mat Min Distress Signals . | . . . Communications Jammed . | . . . Distress Signals . | . . . Times Spotted 28 | 1 12 15 Peak Tracking Total 7 | 1 3 7 Tactical Retreats . | . . . Traps | -11 -10 -10 ------- Run | Yrd Mat Min Traps Triggered 1 | . 1 . Indirectly . | . . . Trap Hack Attempts . | . . . Triggered . | . . . Disarmed . | . . . Reprogrammed . | . . . Reused . | . . . Traps Extracted . | . . . Installed . | . . . Triggered . | . . . Machines | -11 -10 -10 ---------- Run | Yrd Mat Min Machines Disabled 1 | . 1 . Max in Single Turn 1 | . 1 . Machines Repaired . | . . . Machines Dismantled . | . . . Machines Sabotaged . | . . . Overloaded Fab Kills . | . . . Hacking | -11 -10 -10 --------- Run | Yrd Mat Min Machines Accessed 8 | . 8 . Terminals 6 | . 6 . Fabricators . | . . . Repair Stations 1 | . 1 . Recycling Units 1 | . 1 . Scanalyzers . | . . . Garrison Access . | . . . Total Hacks 31 | . 31 . Successful 20 | . 20 . Failed 11 | . 11 . Catastrophic 2 | . 2 . Database Lockouts . | . . . Manual . | . . . Terminals 24 | . 24 . Fabricators . | . . . Repair Stations 3 | . 3 . Recycling Units 4 | . 4 . Scanalyzers . | . . . Garrison Access . | . . . Terminal Hacks 14 | . 14 . Record 10 | . 10 . Alert Level 1 | . 1 . Locate Traps 1 | . 1 . Maintenance Status 1 | . 1 . Hauler Manifests 1 | . 1 . Fabricator Hacks . | . . . Repair Station Hacks 2 | . 2 . Scan Component 1 | . 1 . Repair 1 | . 1 . Recycling Unit Hacks 4 | . 4 . Process 1 | . 1 . Report Inventory 2 | . 2 . Retrieve Matter 1 | . 1 . Scanalyzer . | . . . Garrison Access Hacks . | . . . Unauthorized Hacks . | . . . Terminals . | . . . Fabricators . | . . . Repair Stations . | . . . Recycling Units . | . . . Scanalyzers . | . . . Garrison Access . | . . . Data Cores Recovered . | . . . Used . | . . . Hacking Detections 8 | . 8 . Full Trace Events 7 | . 7 . Feedback Events 1 | . 1 . Corruption 1 | . 1 . Feedback Blocked . | . . . Robot Schematics Acquired . | . . . Robots Built . | . . . Authchips . | . . . Time . | . . . Total Robot Build Rating . | . . . Part Schematics Acquired . | . . . Parts Built . | . . . Authchips . | . . . Time . | . . . Total Part Build Rating . | . . . Parts Repaired 1 | . 1 . Time 26 | . 26 . Parts Recycled . | . . . Recycled Matter 88 | . 88 . Retrieved Matter 88 | . 88 . Retrieved Components . | . . . Parts Scanalyzed . | . . . Part Schematics Acquired . | . . . Parts Damaged . | . . . Bothacking | -11 -10 -10 ------------ Run | Yrd Mat Min Used RIF Installer . | . . . Robots Hacked . | . . . Non-combat . | . . . Combat . | . . . Robot Hacks Applied . | . . . Relay Couplers Released . | . . . Fabnet Peak Effective % . | . . . Robots Rewired . | . . . Allies Hacked . | . . . Hacks Repelled . | . . . Allies | -11 -10 -10 -------- Run | Yrd Mat Min Total Allies . | . . . Largest Group . | . . . Highest-Rated Group . | . . . Highest-Rated Ally . | . . . Total Orders . | . . . Ally Attacks . | . . . Total Damage . | . . . Kills . | . . . Allies Corrupted . | . . . Allies Melted . | . . . Intel | -11 -10 -10 ------- Run | Yrd Mat Min Robot Analysis Total . | . . . Derelict Logs Recovered 1 | . . 1 Drone Launches . | . . . Drone Recoveries . | . . . Exploration | -11 -10 -10 ------------- Run | Yrd Mat Min Turns Passed 1507 | 98 1209 200 Spaces Moved 1204 | 79 975 150 Core 23 | 19 . 4 Treads . | . . . Legs 89 | 3 86 . Wheels 966 | 57 888 21 Hover 126 | . 1 125 Flight . | . . . Fastest Speed 50 | 50 80 56 Average Speed 92 | 74 97 66 Slowest Speed 200 | 120 180 200 Overloaded Moves . | . . . Propulsion Burnouts . | . . . Robots Hopped . | . . . Cave-ins Triggered 1 | . 1 . Exploration Rate (%) 37 | 6 74 32 Regions Visited 2 Branch Regions 1 Pre-discovered Areas 1 | . . 1 Known Exits Taken . | . . . Unknown Exits Taken 2 | 1 1 . Scrap Searched 1 | . . 1 Spaces Dug 11 | . 11 . Terrain Destroyed 33 | . 25 8 Melee . | . . . Projectile 12 | . 12 . AOE 21 | . 13 8 Terrain Rammed . | . . . Walls Destroyed . | . . . Machines Disabled . | . . . Actions | -11 -10 -10 --------- Run | Yrd Mat Min Total 1455 | 106 1138 211 Wait 55 | 3 38 14 Move 1202 | 78 974 150 Hop . | . . . Pick Up 45 | 8 32 5 Fast Attach 1 | . 1 . Attach 19 | 7 10 2 Detach 9 | 2 6 1 Swap 33 | 2 15 16 Drop 22 | . 18 4 Fire 68 | 6 43 19 Melee . | . . . Ram 1 | . 1 . Kick . | . . . Crush . | . . . Escape Stasis . | . . . Rewire . | . . . Trap . | . . . Miscellaneous . | . . . Route ------- -11/Scrapyard -10/Materials (discovered 4 exits: [*Mat x2] / [*Min] / [Sub]) -10/Mines History --------- Turn | Location | Event 2 | -11/Scrapyard | Met Revision 17 66 | -11/Scrapyard | Discovered new exit (range 8) 99 | -11/Scrapyard | Entered Materials 162 | -10/Materials | Discovered new exit (range 8) 319 | -10/Materials | Build established: Mutant 488 | -10/Materials | Discovered new exit (range 9) 488 | -10/Materials | Discovered new exit (range 16) 519 | -10/Materials | Repaired Wheel 865 | -10/Materials | Discovered new exit (range 10) 1203 | -10/Materials | Crushed by falling debris 1308 | -10/Materials | Entered Mines 1453 | -10/Mines | Learned location of Zion (-7) 1455 | -10/Mines | Assembled infested the area 1460 | -10/Mines | Assisted by a Guerilla fighting off Assembled 1492 | -10/Mines | Core integrity fell below 50% 1496 | -10/Mines | Core integrity fell below 20% 1508 | -10/Mines | Destroyed by D-53 Grenadier with Mini Grenade Launcher Last Messages --------------- come on!" C-30 ARC bursts open, deploying its payload. D-53 Grenadier unfolds itself. The unstable cave ceiling collapses. Hover Unit destroyed. D-53 Grenadier destroyed. U-05 Engineer lays Concrete. The unstable cave ceiling collapses. Sensor Array destroyed. Hover Unit destroyed. U-05 Engineer builds a Wall. The unstable cave ceiling collapses. Beam Cannon destroyed. Assault Rifle destroyed. Structural Scanner destroyed. U-05 Engineer lays Concrete. The unstable cave ceiling collapses. as-95518 destroyed. as-22143 destroyed. [Achievement: First Step to Greatness] Map ----- +----------------------------------------------------+ | ## ########## #### ########????????? | | ## ###?##### ##### ###########????????? | | ## ##???#### ###### #####??????????????? | | # ##?????##########|##?????????????????? | | ##??????#########!###????????????????? | | ###????????## |!=###????????????????? | | #####????????## !!!=! ##????????????????? | | ###### ####?????????## !! ===##????????????????? | | ######## ####?????????## !!! ##????????????????? | | ###???##*= ##?????????## !! ! ##????????????????? | | ??????#### ##?????????## ##????????????????? | | ??????#### ##?????????### ###???????????????? | | ????????## ##?????????#############??????????????? | | ????????## ##??????????######## ###??????????????? | | ????????## ##?????????????### ??????????????? | | ????????## ######????????#### ???????????????? | | ????????## ######???????#### u## ??????????????? | | ????????## ##??????#### ## #??????????? | | ????????###### ##??????### d ### ##??????????? | | ????????###### #######?## # ##??????????? | | ????????????## #######?# ###??????????? | | ????????????## ##?# # ####???????????? | | ???????????? ###### ##?# ##?????????????? | | ???????????? ###### ##### ##?????????????? | | ?????????????????## #### ###?????????????? | | ??????????## ###### #### @ # ####?????????????? | | ??????????## ###### ### %%## ####??????????????? | | ??????????## ## ## #####???????????????? | | ??????????########## ###%#######????????????????? | | ??????????########## ###a###????????????????????? | | ??????????????????## % ###????????????????????? | | ??????????????????## """%a%###???????????????????? | | ??????????????????## """a ##???????????????????? | | ??????????????????## """"aa ##???????????????????? | | ??????????????????## % ##???????????????????? | | ??????????????????## ###???????????????????? | | ??????????????????## ####???????????????????? | | ??????????????????## #######????????????????????? | | ?????????????????? ######?????????????????????? | | ??????????????????## ##?????????????????????????? | | ??????????????????## ?????????????????????????? | | ??????????????????## ??????????????????????????? | | ???????????????????? ??????????????????????????? | | ????????????????????= ??????????????????????????? | | ???????????????????? ??????????????????????????? | | ???????????????????? ?????????????????????????? | | ???????????????????? ?????????????????????????? | | ???????????????????? ??????????????????????????? | | ?????????????????????????????????????????????????? | | ?????????????????????????????????????????????????? | +----------------------------------------------------+ Best States ------------- Heat Dissipation 25 Energy Generation 14 Energy Capacity 250 Matter Stores 300 Matter Capacity 300 Sight Range 18 Robot Scan Range 14 Terrain Scan Density 10 Armor Coverage 150 Resistance: KI 20 Resistance: TH 20 Resistance: EX 20 Resistance: EM 20 Resistance: I 20 Resistance: S 20 Resistance: P 20 Evasion (%) 55 Offensive Hacking 10 Item Schematics ----------------- None Robot Schematics ------------------ None Fabricated ------------ Nothing Alien Tech Used ----------------- None Achievements -------------- Crack Shot First Step to Greatness Librarian One Hack Too Far Part-time Mechanic Shopping List Unlikely Earthworm Challenges ------------ None Game ------ Seed RainbowWeldingDiverter Manual? 0 Play Time 01:03:05 Cumulative 1.0 hours Start 2024.05.18 @ 09:44:26 End 2024.05.19 @ 11:47:26 Sessions 3 Manual Loads 0 Difficulty Adventurer Special Mode None Game No. 1 Rogue 0 Adventurer 1 Explorer 0 Win Type - Total 0 Types 0/0/0/0/0/0/0/0/0 Lore% 1 Gallery% 2 Achievement% 2 Wizard Run 0 Options --------- Layout 1 ASCII 0 Keyboard 0 Movement Mouse Keybinds 0 Fullscreen 1 Font 32/SmallcapsGlow Map View 25x17 Zoom Use 79% Tactical HUD 0 Map Filters NONE Filters NONE Steam 1 RUN: c1396f40-63d3-4cdf-9643-b303232e0c53